Workbook

Sheet 1
A1: 附件4
A2: 梧州市2025年面向社会公开考试招聘中小学（幼儿园）教师面试人员名单（龙圩区）
A3: 序号 | B3: 姓名 | C3: 性别 | D3: 民族 | E3: 准考证号码 | F3: 招考单位名称 | G3: 报考岗位 | H3: 报考岗位代码 | I3: 招考人数 | J3: 进入面试范围人选最低笔试成绩 | K3: 职业能力倾向测验分数 | L3: 综合应用能力分数 | M3: 笔试总分（职业能力倾向测验+综合应用能力） | N3: 结构化面试原始成绩 | O3: 结构化面试折算成绩 | P3: 课堂片段教学面试原始成绩 | Q3: 课堂片段教学面试折算成绩 | R3: 面试成绩 | S3: 考试 总成绩 | T3: 排名
A4: 1 | B4: 李金兰 | C4: 女 | D4: 汉族 | E4: 4145042004609 | F4: 梧州市龙圩中心小学 | G4: 语文教师 | H4: 1450400988 | I4: 6 | J4: 163.5 | K4: 90 | L4: 101 | M4: 191 | N4: 84.8 | O4: =N4/2 -> 42.4 | P4: 84.6 | Q4: =P4/2 -> 42.3 | R4: =O4+Q4 -> 84.7 | S4: 74.18 | T4: 1
A5: 2 | B5: 李柏君 | C5: 男 | D5: 汉族 | E5: 4145042001411 | K5: 102 | L5: 86.5 | M5: 188.5 | N5: 80.8 | O5: =N5/2 -> 40.4 | P5: 78.6 | Q5: =P5/2 -> 39.3 | R5: =O5+Q5 -> 79.7 | S5: 71.27 | T5: 3
A6: 3 | B6: 黎雪晴 | C6: 女 | D6: 汉族 | E6: 4145042003324 | K6: 105.5 | L6: 80.5 | M6: 186 | N6: 85.2 | O6: =N6/2 -> 42.6 | P6: 85.6 | Q6: =P6/2 -> 42.8 | R6: =O6+Q6 -> 85.4 | S6: 73.70 | T6: 2
A7: 4 | B7: 冯琳琳 | C7: 女 | D7: 汉族 | E7: 4145042000820 | K7: 90 | L7: 87 | M7: 177 | N7: 72.6 | O7: =N7/2 -> 36.3 | P7: 82.2 | Q7: =P7/2 -> 41.1 | R7: =O7+Q7 -> 77.4 | S7: 68.20 | T7: 8
A8: 5 | B8: 鲁晓凤 | C8: 女 | D8: 壮族 | E8: 4145042004111 | K8: 90.5 | L8: 84 | M8: 174.5 | N8: 75.2 | O8: =N8/2 -> 37.6 | P8: 82.4 | Q8: =P8/2 -> 41.2 | R8: =O8+Q8 -> 78.8 | S8: 68.48 | T8: 7
A9: 6 | B9: 朱俊燚 | C9: 男 | D9: 汉族 | E9: 4145042001311 | K9: 93 | L9: 80 | M9: 173 | N9: 79.4 | O9: =N9/2 -> 39.7 | P9: 80.4 | Q9: =P9/2 -> 40.2 | R9: =O9+Q9 -> 79.9 | S9: 68.78 | T9: 6
A10: 7 | B10: 甘意萍 | C10: 女 | D10: 汉族 | E10: 4145042004804 | K10: 102 | L10: 69.5 | M10: 171.5 | N10: 73.4 | O10: =N10/2 -> 36.7 | P10: 81 | Q10: =P10/2 -> 40.5 | R10: =O10+Q10 -> 77.2 | S10: 67.18 | T10: 14
A11: 8 | B11: 李昊铭 | C11: 男 | D11: 汉族 | E11: 4145042001029 | K11: 87 | L11: 84.5 | M11: 171.5 | N11: 76 | O11: =N11/2 -> 38 | P11: 81 | Q11: =P11/2 -> 40.5 | R11: =O11+Q11 -> 78.5 | S11: 67.83 | T11: 10
A12: 9 | B12: 陈莲妮 | C12: 女 | D12: 汉族 | E12: 4145042005016 | K12: 78 | L12: 93 | M12: 171 | N12: 76.6 | O12: =N12/2 -> 38.3 | P12: 77 | Q12: =P12/2 -> 38.5 | R12: =O12+Q12 -> 76.8 | S12: 66.90 | T12: 15
A13: 10 | B13: 孔柏丹 | C13: 女 | D13: 汉族 | E13: 4145042000305 | K13: 95 | L13: 75.5 | M13: 170.5 | N13: 72 | O13: =N13/2 -> 36 | P13: 77.4 | Q13: =P13/2 -> 38.7 | R13: =O13+Q13 -> 74.7 | S13: 65.77 | T13: 19
A14: 11 | B14: 李美琪 | C14: 女 | D14: 汉族 | E14: 4145042002826 | K14: 92.5 | L14: 77 | M14: 169.5 | N14: 75.4 | O14: =N14/2 -> 37.7 | P14: 81.4 | Q14: =P14/2 -> 40.7 | R14: =O14+Q14 -> 78.4 | S14: 67.45 | T14: 12
A15: 12 | B15: 黎宇佳 | C15: 女 | D15: 汉族 | E15: 4145042003108 | K15: 92 | L15: 76 | M15: 168 | N15: 77.6 | O15: =N15/2 -> 38.8 | P15: 81 | Q15: =P15/2 -> 40.5 | R15: =O15+Q15 -> 79.3 | S15: 67.65 | T15: 11
A16: 13 | B16: 李捷 | C16: 女 | D16: 汉族 | E16: 4145042000930 | K16: 80 | L16: 86.5 | M16: 166.5 | N16: 83.6 | O16: =N16/2 -> 41.8 | P16: 84.4 | Q16: =P16/2 -> 42.2 | R16: =O16+Q16 -> 84 | S16: 69.75 | T16: 4
A17: 14 | B17: 朱培珍 | C17: 女 | D17: 汉族 | E17: 4145042005121 | K17: 80.5 | L17: 86 | M17: 166.5 | N17: 72.2 | O17: =N17/2 -> 36.1 | P17: 82.56 | Q17: =P17/2 -> 41.28 | R17: =O17+Q17 -> 77.38 | S17: 66.44 | T17: 17
A18: 15 | B18: 蒙思玲 | C18: 女 | D18: 汉族 | E18: 4145042001028 | K18: 83.5 | L18: 82 | M18: 165.5 | N18: 71 | O18: =N18/2 -> 35.5 | P18: 84 | Q18: =P18/2 -> 42 | R18: =O18+Q18 -> 77.5 | S18: 66.33 | T18: 18
A19: 16 | B19: 覃梓焯 | C19: 男 | D19: 汉族 | E19: 4145042003110 | K19: 90.5 | L19: 75 | M19: 165.5 | N19: 77.2 | O19: =N19/2 -> 38.6 | P19: 84 | Q19: =P19/2 -> 42 | R19: =O19+Q19 -> 80.6 | S19: 67.88 | T19: 9
A20: 17 | B20: 钟二梅 | C20: 女 | D20: 汉族 | E20: 4145042000416 | K20: 91.5 | L20: 74 | M20: 165.5 | N20: 72.4 | O20: =N20/2 -> 36.2 | P20: 83.56 | Q20: =P20/2 -> 41.78 | R20: =O20+Q20 -> 77.98 | S20: 66.57 | T20: 16
A21: 18 | B21: 黄燕霞 | C21: 女 | D21: 汉族 | E21: 4145042002528 | K21: 87 | L21: 76.5 | M21: 163.5 | N21: 77.2 | O21: =N21/2 -> 38.6 | P21: 83.2 | Q21: =P21/2 -> 41.6 | R21: =O21+Q21 -> 80.2 | S21: 67.35 | T21: 13
A22: 19 | B22: 容水兰 | C22: 女 | D22: 汉族 | E22: 4145042004620 | K22: 77.5 | L22: 86 | M22: 163.5 | N22: 82.4 | O22: =N22/2 -> 41.2 | P22: 84.2 | Q22: =P22/2 -> 42.1 | R22: =O22+Q22 -> 83.3 | S22: 68.90 | T22: 5
A23: 20 | B23: 廖锦晴 | C23: 女 | D23: 汉族 | E23: 4145042002419 | F23: 梧州市龙圩中心小学 | G23: 数学教师 | H23: 1450400989 | I23: 6 | J23: 155 | K23: 94.5 | L23: 82.5 | M23: 177 | N23: 83.6 | O23: =N23/2 -> 41.8 | P23: 77.2 | Q23: =P23/2 -> 38.6 | R23: =O23+Q23 -> 80.4 | S23: 69.70 | T23: 3
A24: 21 | B24: 黎焕 | C24: 女 | D24: 壮族 | E24: 4145042003804 | K24: 99 | L24: 77.5 | M24: 176.5 | N24: 81.4 | O24: =N24/2 -> 40.7 | P24: 81.4 | Q24: =P24/2 -> 40.7 | R24: =O24+Q24 -> 81.4 | S24: 70.12 | T24: 1
A25: 22 | B25: 庞天明 | C25: 男 | D25: 汉族 | E25: 4145042003929 | K25: 93 | L25: 80.5 | M25: 173.5 | N25: 83.8 | O25: =N25/2 -> 41.9 | P25: 76.2 | Q25: =P25/2 -> 38.1 | R25: =O25+Q25 -> 80 | S25: 68.92 | T25: 5
A26: 23 | B26: 李心怡 | C26: 女 | D26: 汉族 | E26: 4145042002717 | K26: 90 | L26: 83 | M26: 173 | N26: 82.6 | O26: =N26/2 -> 41.3 | P26: 80 | Q26: =P26/2 -> 40 | R26: =O26+Q26 -> 81.3 | S26: 69.48 | T26: 4
A27: 24 | B27: 潘建峰 | C27: 男 | D27: 壮族 | E27: 4145042002418 | K27: 90.5 | L27: 82.5 | M27: 173 | N27: 77.2 | O27: =N27/2 -> 38.6 | P27: 76.2 | Q27: =P27/2 -> 38.1 | R27: =O27+Q27 -> 76.7 | S27: 67.18 | T27: 8
A28: 25 | B28: 黄凤仙 | C28: 女 | D28: 壮族 | E28: 4145042001709 | K28: 91 | L28: 79.5 | M28: 170.5 | N28: 77 | O28: =N28/2 -> 38.5 | P28: 73.8 | Q28: =P28/2 -> 36.9 | R28: =O28+Q28 -> 75.4 | S28: 66.12 | T28: 12
A29: 26 | B29: 陈炎英 | C29: 女 | D29: 汉族 | E29: 4145042004115 | K29: 87 | L29: 82 | M29: 169 | N29: 75.2 | O29: =N29/2 -> 37.6 | P29: 77.4 | Q29: =P29/2 -> 38.7 | R29: =O29+Q29 -> 76.3 | S29: 66.32 | T29: 11
A30: 27 | B30: 董冬梅 | C30: 女 | D30: 汉族 | E30: 4145042002627 | K30: 81.5 | L30: 86 | M30: 167.5 | N30: 86.2 | O30: =N30/2 -> 43.1 | P30: 82 | Q30: =P30/2 -> 41 | R30: =O30+Q30 -> 84.1 | S30: 69.97 | T30: 2
A31: 28 | B31: 赵洁连 | C31: 女 | D31: 汉族 | E31: 4145042004621 | K31: 87 | L31: 78 | M31: 165 | N31: 72.8 | O31: =N31/2 -> 36.4 | P31: 72.6 | Q31: =P31/2 -> 36.3 | R31: =O31+Q31 -> 72.7 | S31: 63.85 | T31: 16
A32: 29 | B32: 吴家妮 | C32: 女 | D32: 汉族 | E32: 4145042000211 | K32: 75 | L32: 88 | M32: 163 | N32: 72.8 | O32: =N32/2 -> 36.4 | P32: 75.2 | Q32: =P32/2 -> 37.6 | R32: =O32+Q32 -> 74 | S32: 64.17 | T32: 15
A33: 30 | B33: 李樱燕 | C33: 女 | D33: 汉族 | E33: 4145042000511 | K33: 89 | L33: 73.5 | M33: 162.5 | N33: 85.2 | O33: =N33/2 -> 42.6 | P33: 75.2 | Q33: =P33/2 -> 37.6 | R33: =O33+Q33 -> 80.2 | S33: 67.18 | T33: 7
A34: 31 | B34: 卢圣朝 | C34: 男 | D34: 汉族 | E34: 4145042001524 | K34: 87 | L34: 74 | M34: 161 | N34: 85 | O34: =N34/2 -> 42.5 | P34: 76.6 | Q34: =P34/2 -> 38.3 | R34: =O34+Q34 -> 80.8 | S34: 67.23 | T34: 6
A35: 32 | B35: 罗瑀 | C35: 女 | D35: 汉族 | E35: 4145042005024 | K35: 81 | L35: 79 | M35: 160 | N35: 81.4 | O35: =N35/2 -> 40.7 | P35: 78.6 | Q35: =P35/2 -> 39.3 | R35: =O35+Q35 -> 80 | S35: 66.67 | T35: 9
A36: 33 | B36: 刘庭希 | C36: 男 | D36: 汉族 | E36: 4145042001723 | K36: 80.5 | L36: 79 | M36: 159.5 | N36: 79.6 | O36: =N36/2 -> 39.8 | P36: 72.4 | Q36: =P36/2 -> 36.2 | R36: =O36+Q36 -> 76 | S36: 64.58 | T36: 14
A37: 34 | B37: 魏舒欣 | C37: 女 | D37: 汉族 | E37: 4145042000717 | K37: 80 | L37: 79 | M37: 159 | N37: 70.6 | O37: =N37/2 -> 35.3 | P37: 75.2 | Q37: =P37/2 -> 37.6 | R37: =O37+Q37 -> 72.9 | S37: 62.95 | T37: 17
A38: 35 | B38: 雁裕婷 | C38: 女 | D38: 汉族 | E38: 4145042003620 | K38: 70.5 | L38: 88.5 | M38: 159 | N38: 81 | O38: =N38/2 -> 40.5 | P38: 78.6 | Q38: =P38/2 -> 39.3 | R38: =O38+Q38 -> 79.8 | S38: 66.40 | T38: 10
A39: 36 | B39: 黄怡婷 | C39: 女 | D39: 汉族 | E39: 4145042004303 | K39: 80.5 | L39: 77 | M39: 157.5 | N39: 80.6 | O39: =N39/2 -> 40.3 | P39: 78.4 | Q39: =P39/2 -> 39.2 | R39: =O39+Q39 -> 79.5 | S39: 66.00 | T39: 13
A40: 37 | B40: 莫雪梅 | C40: 女 | D40: 汉族 | E40: 4145042004416 | K40: 80.5 | L40: 74.5 | M40: 155 | N40: 68 | O40: =N40/2 -> 34 | P40: 69.4 | Q40: =P40/2 -> 34.7 | R40: =O40+Q40 -> 68.7 | S40: 60.18 | T40: 18
A41: 38 | B41: 冯木坚 | C41: 女 | D41: 汉族 | E41: 4145042003414 | F41: 梧州市龙圩中心小学 | G41: 体育教师 | H41: 1450400990 | I41: 1 | J41: 134.5 | K41: 87 | L41: 73 | M41: 160 | N41: 72.6 | O41: =N41/2 -> 36.3 | P41: 76.2 | Q41: =P41/2 -> 38.1 | R41: =O41+Q41 -> 74.4 | S41: 63.87 | T41: 2
A42: 39 | B42: 黎何钊 | C42: 男 | D42: 汉族 | E42: 4145042003325 | K42: 64 | L42: 72.5 | M42: 136.5 | N42: 82.2 | O42: =N42/2 -> 41.1 | P42: 83.8 | Q42: =P42/2 -> 41.9 | R42: =O42+Q42 -> 83 | S42: 64.25 | T42: 1
A43: 40 | B43: 梁彬 | C43: 男 | D43: 汉族 | E43: 4145042000923 | K43: 64 | L43: 70.5 | M43: 134.5 | N43: 75.2 | O43: =N43/2 -> 37.6 | P43: 82.6 | Q43: =P43/2 -> 41.3 | R43: =O43+Q43 -> 78.9 | S43: 61.87 | T43: 3
A44: 41 | B44: 缪铟 | C44: 女 | D44: 汉族 | E44: 4145042001909 | F44: 梧州市龙圩中心小学 | G44: 心理健康教师 | H44: 1450400991 | I44: 1 | J44: 131 | K44: 64 | L44: 88 | M44: 152 | N44: 80.2 | O44: =N44/2 -> 40.1 | P44: 80.6 | Q44: =P44/2 -> 40.3 | R44: =O44+Q44 -> 80.4 | S44: 65.53 | T44: 1
A45: 42 | B45: 李锦榕 | C45: 女 | D45: 汉族 | E45: 4145042001903 | K45: 59 | L45: 72 | M45: 131 | N45: 0 | O45: =N45/2 -> 0 | P45: 0 | Q45: =P45/2 -> 0 | R45: =O45+Q45 -> 0 | S45: 21.83 | T45: 2
A46: 43 | B46: 黎晓珊 | C46: 女 | D46: 汉族 | E46: 4145042004630 | F46: 梧州市龙圩中心小学 | G46: 书法教师 | H46: 1450400992 | I46: 1 | J46: 145 | K46: 87.5 | L46: 82 | M46: 169.5 | N46: 79.8 | O46: =N46/2 -> 39.9 | P46: 84 | Q46: =P46/2 -> 42 | R46: =O46+Q46 -> 81.9 | S46: 69.20 | T46: 1
A47: 44 | B47: 李炎慧 | C47: 女 | D47: 汉族 | E47: 4145042001409 | K47: 75.5 | L47: 69.5 | M47: 145 | N47: 72.8 | O47: =N47/2 -> 36.4 | P47: 79.2 | Q47: =P47/2 -> 39.6 | R47: =O47+Q47 -> 76 | S47: 62.17 | T47: 2
A48: 45 | B48: 严养泉 | C48: 男 | D48: 汉族 | E48: 4145042003922 | K48: 72 | L48: 73 | M48: 145 | N48: 75 | O48: =N48/2 -> 37.5 | P48: 74.6 | Q48: =P48/2 -> 37.3 | R48: =O48+Q48 -> 74.8 | S48: 61.57 | T48: 3
A49: 46 | B49: 叶霞 | C49: 女 | D49: 汉族 | E49: 4145042002106 | F49: 梧州市龙圩第二实验小学 | G49: 英语教师 | H49: 1450400993 | I49: 1 | J49: 163 | K49: 84.5 | L49: 85 | M49: 169.5 | N49: 75.4 | O49: =N49/2 -> 37.7 | P49: 84.6 | Q49: =P49/2 -> 42.3 | R49: =O49+Q49 -> 80 | S49: 68.25 | T49: 1
A50: 47 | B50: 韦敏婵 | C50: 女 | D50: 汉族 | E50: 4145042003203 | K50: 76.5 | L50: 89.5 | M50: 166 | N50: 77.6 | O50: =N50/2 -> 38.8 | P50: 84.4 | Q50: =P50/2 -> 42.2 | R50: =O50+Q50 -> 81 | S50: 68.17 | T50: 2
A51: 48 | B51: 黄湘滢 | C51: 女 | D51: 汉族 | E51: 4145042005222 | K51: 82.5 | L51: 80.5 | M51: 163 | N51: 73.8 | O51: =N51/2 -> 36.9 | P51: 84.6 | Q51: =P51/2 -> 42.3 | R51: =O51+Q51 -> 79.2 | S51: 66.77 | T51: 3
A52: 49 | B52: 雷舒雯 | C52: 女 | D52: 汉族 | E52: 4145042000721 | F52: 梧州市苍海小学 | G52: 语文教师 | H52: 1450400994 | I52: 3 | J52: 158 | K52: 103 | L52: 88.5 | M52: 191.5 | N52: 78.6 | O52: =N52/2 -> 39.3 | P52: 80 | Q52: =P52/2 -> 40 | R52: =O52+Q52 -> 79.3 | S52: 71.57 | T52: 1
A53: 50 | B53: 贺蜜 | C53: 女 | D53: 汉族 | E53: 4145042004429 | K53: 87 | L53: 89.5 | M53: 176.5 | N53: 68.4 | O53: =N53/2 -> 34.2 | P53: 73.4 | Q53: =P53/2 -> 36.7 | R53: =O53+Q53 -> 70.9 | S53: 64.87 | T53: 6
A54: 51 | B54: 胡紫珊 | C54: 女 | D54: 汉族 | E54: 4145042000703 | K54: 96 | L54: 73.5 | M54: 169.5 | N54: 76.6 | O54: =N54/2 -> 38.3 | P54: 82.2 | Q54: =P54/2 -> 41.1 | R54: =O54+Q54 -> 79.4 | S54: 67.95 | T54: 4
A55: 52 | B55: 黎金花 | C55: 女 | D55: 汉族 | E55: 4145042001609 | K55: 80 | L55: 89.5 | M55: 169.5 | N55: 78.4 | O55: =N55/2 -> 39.2 | P55: 83 | Q55: =P55/2 -> 41.5 | R55: =O55+Q55 -> 80.7 | S55: 68.60 | T55: 2
A56: 53 | B56: 陈金莹 | C56: 女 | D56: 汉族 | E56: 4145042000103 | K56: 87.5 | L56: 77.5 | M56: 165 | N56: 80.2 | O56: =N56/2 -> 40.1 | P56: 82.2 | Q56: =P56/2 -> 41.1 | R56: =O56+Q56 -> 81.2 | S56: 68.10 | T56: 3
A57: 54 | B57: 梁春燕 | C57: 女 | D57: 汉族 | E57: 4145042003015 | K57: 84.5 | L57: 80.5 | M57: 165 | N57: 72.6 | O57: =N57/2 -> 36.3 | P57: 82.6 | Q57: =P57/2 -> 41.3 | R57: =O57+Q57 -> 77.6 | S57: 66.30 | T57: 5
A58: 55 | B58: 朱桂银 | C58: 女 | D58: 汉族 | E58: 4145042003725 | K58: 83.5 | L58: 81.5 | M58: 165 | N58: 0 | O58: =N58/2 -> 0 | P58: 0 | Q58: =P58/2 -> 0 | R58: =O58+Q58 -> 0 | S58: 27.50 | T58: 9
A59: 56 | B59: 莫婕清 | C59: 女 | D59: 汉族 | E59: 4145042000610 | K59: 83 | L59: 76 | M59: 159 | N59: 67.2 | O59: =N59/2 -> 33.6 | P59: 73.8 | Q59: =P59/2 -> 36.9 | R59: =O59+Q59 -> 70.5 | S59: 61.75 | T59: 8
A60: 57 | B60: 邹嘉莹 | C60: 女 | D60: 汉族 | E60: 4145042003801 | K60: 68 | L60: 90 | M60: 158 | N60: 70.2 | O60: =N60/2 -> 35.1 | P60: 77.6 | Q60: =P60/2 -> 38.8 | R60: =O60+Q60 -> 73.9 | S60: 63.28 | T60: 7
A61: 58 | B61: 秦舒云 | C61: 女 | D61: 汉族 | E61: 4145042004312 | F61: 梧州市苍海小学 | G61: 数学教师 | H61: 1450400995 | I61: 3 | J61: 141 | K61: 89 | L61: 92 | M61: 181 | N61: 82 | O61: =N61/2 -> 41 | P61: 81.4 | Q61: =P61/2 -> 40.7 | R61: =O61+Q61 -> 81.7 | S61: 71.02 | T61: 1
A62: 59 | B62: 张越 | C62: 女 | D62: 汉族 | E62: 4145042004221 | K62: 97.5 | L62: 72 | M62: 169.5 | N62: 74.6 | O62: =N62/2 -> 37.3 | P62: 81.6 | Q62: =P62/2 -> 40.8 | R62: =O62+Q62 -> 78.1 | S62: 67.30 | T62: 2
A63: 60 | B63: 黎泳宇 | C63: 男 | D63: 汉族 | E63: 4145042000825 | K63: 81.5 | L63: 75.5 | M63: 157 | N63: 79 | O63: =N63/2 -> 39.5 | P63: 82.4 | Q63: =P63/2 -> 41.2 | R63: =O63+Q63 -> 80.7 | S63: 66.52 | T63: 3
A64: 61 | B64: 莫金月 | C64: 女 | D64: 汉族 | E64: 4145042002927 | K64: 80 | L64: 77 | M64: 157 | N64: 72.2 | O64: =N64/2 -> 36.1 | P64: 84.6 | Q64: =P64/2 -> 42.3 | R64: =O64+Q64 -> 78.4 | S64: 65.37 | T64: 4
A65: 62 | B65: 陈丹丹 | C65: 女 | D65: 汉族 | E65: 4145042000620 | K65: 84 | L65: 72.5 | M65: 156.5 | N65: 73 | O65: =N65/2 -> 36.5 | P65: 76.8 | Q65: =P65/2 -> 38.4 | R65: =O65+Q65 -> 74.9 | S65: 63.53 | T65: 6
A66: 63 | B66: 李亚英 | C66: 女 | D66: 汉族 | E66: 4145042001815 | K66: 72 | L66: 79 | M66: 151 | N66: 78.2 | O66: =N66/2 -> 39.1 | P66: 81.4 | Q66: =P66/2 -> 40.7 | R66: =O66+Q66 -> 79.8 | S66: 65.07 | T66: 5
A67: 64 | B67: 磨映维 | C67: 女 | D67: 壮族 | E67: 4145042003022 | K67: 68.5 | L67: 76 | M67: 144.5 | N67: 72.8 | O67: =N67/2 -> 36.4 | P67: 75.6 | Q67: =P67/2 -> 37.8 | R67: =O67+Q67 -> 74.2 | S67: 61.18 | T67: 7
A68: 65 | B68: 黎火凤 | C68: 女 | D68: 汉族 | E68: 4145042000711 | K68: 71 | L68: 73 | M68: 144 | N68: 0 | O68: =N68/2 -> 0 | P68: 0 | Q68: =P68/2 -> 0 | R68: =O68+Q68 -> 0 | S68: 24.00 | T68: 9
A69: 66 | B69: 莫翠华 | C69: 女 | D69: 汉族 | E69: 4145042002225 | K69: 66 | L69: 75 | M69: 141 | N69: 71.6 | O69: =N69/2 -> 35.8 | P69: 74.4 | Q69: =P69/2 -> 37.2 | R69: =O69+Q69 -> 73 | S69: 60.00 | T69: 8
A70: 67 | B70: 董妍 | C70: 女 | D70: 汉族 | E70: 4145042000514 | F70: 梧州市苍海小学 | G70: 心理健康教师 | H70: 1450400996 | I70: 1 | J70: 135 | K70: 83 | L70: 95.5 | M70: 178.5 | N70: 84.4 | O70: =N70/2 -> 42.2 | P70: 85.6 | Q70: =P70/2 -> 42.8 | R70: =O70+Q70 -> 85 | S70: 72.25 | T70: 1
A71: 68 | B71: 岑燕梅 | C71: 女 | D71: 汉族 | E71: 4145042004803 | K71: 71.5 | L71: 84.5 | M71: 156 | N71: 74.8 | O71: =N71/2 -> 37.4 | P71: 82.8 | Q71: =P71/2 -> 41.4 | R71: =O71+Q71 -> 78.8 | S71: 65.40 | T71: 2
A72: 69 | B72: 吴梅雄 | C72: 女 | D72: 汉族 | E72: 4145042003921 | K72: 68.5 | L72: 66.5 | M72: 135 | N72: 0 | O72: =N72/2 -> 0 | P72: 0 | Q72: =P72/2 -> 0 | R72: =O72+Q72 -> 0 | S72: 22.50 | T72: 3
A73: 70 | B73: 邓紫容 | C73: 女 | D73: 汉族 | E73: 4145042002618 | F73: 梧州市福达小学 | G73: 语文教师 | H73: 1450400997 | I73: 1 | J73: 155 | K73: 96.5 | L73: 91 | M73: 187.5 | N73: 82.8 | O73: =N73/2 -> 41.4 | P73: 84.2 | Q73: =P73/2 -> 42.1 | R73: =O73+Q73 -> 83.5 | S73: 73.00 | T73: 1
A74: 71 | B74: 杨娟华 | C74: 女 | D74: 汉族 | E74: 4145042005209 | K74: 99 | L74: 83.5 | M74: 182.5 | N74: 73.4 | O74: =N74/2 -> 36.7 | P74: 78.8 | Q74: =P74/2 -> 39.4 | R74: =O74+Q74 -> 76.1 | S74: 68.47 | T74: 2
A75: 72 | B75: 覃滢丹 | C75: 女 | D75: 汉族 | E75: 4145042002820 | K75: 69.5 | L75: 85.5 | M75: 155 | N75: 74.6 | O75: =N75/2 -> 37.3 | P75: 75.8 | Q75: =P75/2 -> 37.9 | R75: =O75+Q75 -> 75.2 | S75: 63.43 | T75: 3
A76: 73 | B76: 陈栋坚 | C76: 男 | D76: 汉族 | E76: 4145042003722 | F76: 梧州市福达小学 | G76: 数学教师 | H76: 1450400998 | I76: 1 | J76: 143.5 | K76: 82.5 | L76: 79 | M76: 161.5 | N76: 71.6 | O76: =N76/2 -> 35.8 | P76: 78 | Q76: =P76/2 -> 39 | R76: =O76+Q76 -> 74.8 | S76: 64.32 | T76: 2
A77: 74 | B77: 关丽妮 | C77: 女 | D77: 汉族 | E77: 4145042003425 | K77: 72 | L77: 76.5 | M77: 148.5 | N77: 78.8 | O77: =N77/2 -> 39.4 | P77: 80.2 | Q77: =P77/2 -> 40.1 | R77: =O77+Q77 -> 79.5 | S77: 64.50 | T77: 1
A78: 75 | B78: 苏榆 | C78: 女 | D78: 汉族 | E78: 4145042000707 | K78: 78.5 | L78: 65 | M78: 143.5 | N78: 68.8 | O78: =N78/2 -> 34.4 | P78: 74 | Q78: =P78/2 -> 37 | R78: =O78+Q78 -> 71.4 | S78: 59.62 | T78: 3
A79: 76 | B79: 梁梅玲 | C79: 女 | D79: 汉族 | E79: 4145042002519 | F79: 梧州市龙圩镇中心校 | G79: 语文教师 | H79: 1450400999 | I79: 1 | J79: 118 | K79: 100.5 | L79: 83 | M79: 183.5 | N79: 74.8 | O79: =N79/2 -> 37.4 | P79: 79.2 | Q79: =P79/2 -> 39.6 | R79: =O79+Q79 -> 77 | S79: 69.08 | T79: 1
A80: 77 | B80: 黄石燕 | C80: 女 | D80: 汉族 | E80: 4145042003309 | K80: 73.5 | L80: 65.5 | M80: 139 | N80: 81.2 | O80: =N80/2 -> 40.6 | P80: 81.6 | Q80: =P80/2 -> 40.8 | R80: =O80+Q80 -> 81.4 | S80: 63.87 | T80: 2
A81: 78 | B81: 吴锦辉 | C81: 男 | D81: 汉族 | E81: 4145042002926 | K81: 61.5 | L81: 56.5 | M81: 118 | N81: 62.6 | O81: =N81/2 -> 31.3 | P81: 65.8 | Q81: =P81/2 -> 32.9 | R81: =O81+Q81 -> 64.2 | S81: 51.77 | T81: 3
A82: 79 | B82: 倪华炎 | C82: 男 | D82: 汉族 | E82: 4145042000813 | F82: 梧州市龙圩镇中心校 | G82: 数学教师 | H82: 1450401000 | I82: 1 | J82: 138 | K82: 78.5 | L82: 63 | M82: 141.5 | N82: 81.2 | O82: =N82/2 -> 40.6 | P82: 83.6 | Q82: =P82/2 -> 41.8 | R82: =O82+Q82 -> 82.4 | S82: 64.78 | T82: 1
A83: 80 | B83: 邹林玲 | C83: 女 | D83: 汉族 | E83: 4145042002110 | K83: 69.5 | L83: 70.5 | M83: 140 | N83: 68.4 | O83: =N83/2 -> 34.2 | P83: 68.8 | Q83: =P83/2 -> 34.4 | R83: =O83+Q83 -> 68.6 | S83: 57.63 | T83: 3
A84: 81 | B84: 陈杏清 | C84: 女 | D84: 汉族 | E84: 4145042005301 | K84: 76.5 | L84: 61.5 | M84: 138 | N84: 72.8 | O84: =N84/2 -> 36.4 | P84: 75.6 | Q84: =P84/2 -> 37.8 | R84: =O84+Q84 -> 74.2 | S84: 60.10 | T84: 2
A85: 82 | B85: 莫璐 | C85: 女 | D85: 汉族 | E85: 4145042003212 | F85: 梧州市龙圩镇中心校 | G85: 音乐教师 | H85: 1450401001 | I85: 1 | J85: 156 | K85: 90.5 | L85: 85 | M85: 175.5 | N85: 75 | O85: =N85/2 -> 37.5 | P85: 80.2 | Q85: =P85/2 -> 40.1 | R85: =O85+Q85 -> 77.6 | S85: 68.05 | T85: 1
A86: 83 | B86: 覃柳琴 | C86: 女 | D86: 壮族 | E86: 4145042001813 | K86: 93 | L86: 75 | M86: 168 | N86: 76.4 | O86: =N86/2 -> 38.2 | P86: 82.4 | Q86: =P86/2 -> 41.2 | R86: =O86+Q86 -> 79.4 | S86: 67.70 | T86: 2
A87: 84 | B87: 莫小琪 | C87: 女 | D87: 汉族 | E87: 4145042005130 | K87: 77.5 | L87: 78.5 | M87: 156 | N87: 69.4 | O87: =N87/2 -> 34.7 | P87: 75.8 | Q87: =P87/2 -> 37.9 | R87: =O87+Q87 -> 72.6 | S87: 62.30 | T87: 3
A88: 85 | B88: 邹鑫铭 | C88: 女 | D88: 汉族 | E88: 4145042002817 | F88: 梧州市大坡镇中心校 | G88: 语文教师 | H88: 1450401002 | I88: 2 | J88: 142 | K88: 90 | L88: 78 | M88: 168 | N88: 78 | O88: =N88/2 -> 39 | P88: 82.6 | Q88: =P88/2 -> 41.3 | R88: =O88+Q88 -> 80.3 | S88: 68.15 | T88: 1
A89: 86 | B89: 唐健 | C89: 男 | D89: 汉族 | E89: 4145042003605 | K89: 79 | L89: 81.5 | M89: 160.5 | N89: 80 | O89: =N89/2 -> 40 | P89: 82.2 | Q89: =P89/2 -> 41.1 | R89: =O89+Q89 -> 81.1 | S89: 67.30 | T89: 3
A90: 87 | B90: 陈春伶 | C90: 女 | D90: 汉族 | E90: 4145042000213 | K90: 75 | L90: 73 | M90: 148 | N90: 86.2 | O90: =N90/2 -> 43.1 | P90: 86.4 | Q90: =P90/2 -> 43.2 | R90: =O90+Q90 -> 86.3 | S90: 67.82 | T90: 2
A91: 88 | B91: 陈杨熔 | C91: 女 | D91: 汉族 | E91: 4145042000419 | K91: 80 | L91: 68 | M91: 148 | N91: 60.8 | O91: =N91/2 -> 30.4 | P91: 71.4 | Q91: =P91/2 -> 35.7 | R91: =O91+Q91 -> 66.1 | S91: 57.72 | T91: 6
A92: 89 | B92: 刘林献 | C92: 女 | D92: 汉族 | E92: 4145042002526 | K92: 74 | L92: 74 | M92: 148 | N92: 75 | O92: =N92/2 -> 37.5 | P92: 78.4 | Q92: =P92/2 -> 39.2 | R92: =O92+Q92 -> 76.7 | S92: 63.02 | T92: 4
A93: 90 | B93: 徐坚炎 | C93: 女 | D93: 汉族 | E93: 4145042000821 | K93: 72 | L93: 70 | M93: 142 | N93: 73.2 | O93: =N93/2 -> 36.6 | P93: 81.2 | Q93: =P93/2 -> 40.6 | R93: =O93+Q93 -> 77.2 | S93: 62.27 | T93: 5
A94: 91 | B94: 杨道林 | C94: 男 | D94: 汉族 | E94: 4145042003009 | F94: 梧州市大坡镇中心校 | G94: 数学教师 | H94: 1450401003 | I94: 2 | J94: 130 | K94: 74.5 | L94: 79.5 | M94: 154 | N94: 73.8 | O94: =N94/2 -> 36.9 | P94: 76 | Q94: =P94/2 -> 38 | R94: =O94+Q94 -> 74.9 | S94: 63.12 | T94: 3
A95: 92 | B95: 覃倩梅 | C95: 女 | D95: 汉族 | E95: 4145042000922 | K95: 80 | L95: 69.5 | M95: 149.5 | N95: 75.4 | O95: =N95/2 -> 37.7 | P95: 79.6 | Q95: =P95/2 -> 39.8 | R95: =O95+Q95 -> 77.5 | S95: 63.67 | T95: 1
A96: 93 | B96: 韦炎梅 | C96: 女 | D96: 汉族 | E96: 4145042003105 | K96: 70 | L96: 74 | M96: 144 | N96: 64.4 | O96: =N96/2 -> 32.2 | P96: 68.6 | Q96: =P96/2 -> 34.3 | R96: =O96+Q96 -> 66.5 | S96: 57.25 | T96: 6
A97: 94 | B97: 何焕秋 | C97: 女 | D97: 汉族 | E97: 4145042002016 | K97: 69 | L97: 70.5 | M97: 139.5 | N97: 78.4 | O97: =N97/2 -> 39.2 | P97: 81.8 | Q97: =P97/2 -> 40.9 | R97: =O97+Q97 -> 80.1 | S97: 63.30 | T97: 2
A98: 95 | B98: 龙泳锦 | C98: 女 | D98: 汉族 | E98: 4145042002517 | K98: 76 | L98: 61.5 | M98: 137.5 | N98: 72.4 | O98: =N98/2 -> 36.2 | P98: 77.2 | Q98: =P98/2 -> 38.6 | R98: =O98+Q98 -> 74.8 | S98: 60.32 | T98: 5
A99: 96 | B99: 黎恒秀 | C99: 女 | D99: 汉族 | E99: 4145042003830 | K99: 62.5 | L99: 67.5 | M99: 130 | N99: 77.4 | O99: =N99/2 -> 38.7 | P99: 82.6 | Q99: =P99/2 -> 41.3 | R99: =O99+Q99 -> 80 | S99: 61.67 | T99: 4
A100: 97 | B100: 聂焕兰 | C100: 女 | D100: 汉族 | E100: 4145042001020 | F100: 梧州市广平镇中心校 | G100: 语文教师 | H100: 1450401004 | I100: 2 | J100: 92 | K100: 77 | L100: 81 | M100: 158 | N100: 80.2 | O100: =N100/2 -> 40.1 | P100: 80 | Q100: =P100/2 -> 40 | R100: =O100+Q100 -> 80.1 | S100: 66.38 | T100: 1
A101: 98 | B101: 黄振相 | C101: 男 | D101: 壮族 | E101: 4145042000111 | K101: 87 | L101: 63.5 | M101: 150.5 | N101: 79.4 | O101: =N101/2 -> 39.7 | P101: 84.8 | Q101: =P101/2 -> 42.4 | R101: =O101+Q101 -> 82.1 | S101: 66.13 | T101: 2
A102: 99 | B102: 黄明燕 | C102: 女 | D102: 汉族 | E102: 4145042000911 | K102: 63.5 | L102: 59 | M102: 122.5 | N102: 71.8 | O102: =N102/2 -> 35.9 | P102: 69.4 | Q102: =P102/2 -> 34.7 | R102: =O102+Q102 -> 70.6 | S102: 55.72 | T102: 3
A103: 100 | B103: 刘冰瑜 | C103: 女 | D103: 汉族 | E103: 4145042002206 | K103: 64.5 | L103: 52.5 | M103: 117 | N103: 69.2 | O103: =N103/2 -> 34.6 | P103: 70 | Q103: =P103/2 -> 35 | R103: =O103+Q103 -> 69.6 | S103: 54.30 | T103: 4
A104: 101 | B104: 张茜岚 | C104: 女 | D104: 汉族 | E104: 4145042005216 | K104: 37.5 | L104: 54.5 | M104: 92 | N104: 72.8 | O104: =N104/2 -> 36.4 | P104: 76 | Q104: =P104/2 -> 38 | R104: =O104+Q104 -> 74.4 | S104: 52.53 | T104: 5
A105: 102 | B105: 王光圆 | C105: 女 | D105: 汉族 | E105: 4145042002228 | F105: 梧州市广平镇中心校 | G105: 数学教师 | H105: 1450401005 | I105: 1 | J105: 126 | K105: 80 | L105: 81.5 | M105: 161.5 | N105: 81.2 | O105: =N105/2 -> 40.6 | P105: 82.4 | Q105: =P105/2 -> 41.2 | R105: =O105+Q105 -> 81.8 | S105: 67.82 | T105: 1
A106: 103 | B106: 黎娟淼 | C106: 女 | D106: 汉族 | E106: 4145042002311 | K106: 56.5 | L106: 72.5 | M106: 129 | N106: 78.8 | O106: =N106/2 -> 39.4 | P106: 80.2 | Q106: =P106/2 -> 40.1 | R106: =O106+Q106 -> 79.5 | S106: 61.25 | T106: 2
A107: 104 | B107: 姚秋炜 | C107: 女 | D107: 汉族 | E107: 4145042002009 | K107: 58 | L107: 68 | M107: 126 | N107: 62.6 | O107: =N107/2 -> 31.3 | P107: 69.6 | Q107: =P107/2 -> 34.8 | R107: =O107+Q107 -> 66.1 | S107: 54.05 | T107: 3
A108: 105 | B108: 曾焯 | C108: 女 | D108: 汉族 | E108: 4145042002202 | F108: 梧州市广平镇中心校 | G108: 英语教师 | H108: 1450401006 | I108: 2 | J108: 145 | K108: 87 | L108: 93 | M108: 180 | N108: 82.8 | O108: =N108/2 -> 41.4 | P108: 85.2 | Q108: =P108/2 -> 42.6 | R108: =O108+Q108 -> 84 | S108: 72.00 | T108: 1
A109: 106 | B109: 王莉 | C109: 女 | D109: 汉族 | E109: 4145042004125 | K109: 83 | L109: 75.5 | M109: 158.5 | N109: 82 | O109: =N109/2 -> 41 | P109: 81.6 | Q109: =P109/2 -> 40.8 | R109: =O109+Q109 -> 81.8 | S109: 67.32 | T109: 2
A110: 107 | B110: 张润 | C110: 女 | D110: 汉族 | E110: 4145042002309 | K110: 82 | L110: 69.5 | M110: 151.5 | N110: 73.2 | O110: =N110/2 -> 36.6 | P110: 74.2 | Q110: =P110/2 -> 37.1 | R110: =O110+Q110 -> 73.7 | S110: 62.10 | T110: 5
A111: 108 | B111: 张藤芳 | C111: 女 | D111: 汉族 | E111: 4145042005017 | K111: 68.5 | L111: 82 | M111: 150.5 | N111: 75.8 | O111: =N111/2 -> 37.9 | P111: 77.8 | Q111: =P111/2 -> 38.9 | R111: =O111+Q111 -> 76.8 | S111: 63.48 | T111: 4
A112: 109 | B112: 韦柳媚 | C112: 女 | D112: 汉族 | E112: 4145042002522 | K112: 72 | L112: 75 | M112: 147 | N112: 81.4 | O112: =N112/2 -> 40.7 | P112: 87.2 | Q112: =P112/2 -> 43.6 | R112: =O112+Q112 -> 84.3 | S112: 66.65 | T112: 3
A113: 110 | B113: 黄晓凤 | C113: 女 | D113: 汉族 | E113: 4145042004912 | K113: 73.5 | L113: 71.5 | M113: 145 | N113: 61.2 | O113: =N113/2 -> 30.6 | P113: 73.2 | Q113: =P113/2 -> 36.6 | R113: =O113+Q113 -> 67.2 | S113: 57.77 | T113: 6
A114: 111 | B114: 左飞 | C114: 女 | D114: 汉族 | E114: 4145042005302 | F114: 梧州市新地镇中心校 | G114: 语文教师 | H114: 1450401007 | I114: 2 | J114: 155 | K114: 110 | L114: 97 | M114: 207 | N114: 73.8 | O114: =N114/2 -> 36.9 | P114: 79.8 | Q114: =P114/2 -> 39.9 | R114: =O114+Q114 -> 76.8 | S114: 72.90 | T114: 1
A115: 112 | B115: 莫伟清 | C115: 女 | D115: 汉族 | E115: 4145042000524 | K115: 97.5 | L115: 76 | M115: 173.5 | N115: 79 | O115: =N115/2 -> 39.5 | P115: 81.6 | Q115: =P115/2 -> 40.8 | R115: =O115+Q115 -> 80.3 | S115: 69.07 | T115: 2
A116: 113 | B116: 罗丽霞 | C116: 女 | D116: 汉族 | E116: 4145042000219 | K116: 87 | L116: 83.5 | M116: 170.5 | N116: 80.8 | O116: =N116/2 -> 40.4 | P116: 78.6 | Q116: =P116/2 -> 39.3 | R116: =O116+Q116 -> 79.7 | S116: 68.27 | T116: 3
A117: 114 | B117: 钟凯媚 | C117: 女 | D117: 汉族 | E117: 4145042001912 | K117: 83.5 | L117: 75 | M117: 158.5 | N117: 78.6 | O117: =N117/2 -> 39.3 | P117: 83.2 | Q117: =P117/2 -> 41.6 | R117: =O117+Q117 -> 80.9 | S117: 66.87 | T117: 4
A118: 115 | B118: 刘锦清 | C118: 女 | D118: 汉族 | E118: 4145042001201 | K118: 82.5 | L118: 73 | M118: 155.5 | N118: 缺考 | O118: =N118/2 ->  | P118: 缺考 | Q118: =P118/2 ->  | R118: =O118+Q118 ->  | S118: 25.92 | T118: 6
A119: 116 | B119: 钟妙娇 | C119: 女 | D119: 汉族 | E119: 4145042001128 | K119: 78 | L119: 77 | M119: 155 | N119: 69.8 | O119: =N119/2 -> 34.9 | P119: 79.2 | Q119: =P119/2 -> 39.6 | R119: =O119+Q119 -> 74.5 | S119: 63.08 | T119: 5
A120: 117 | B120: 张曼婷 | C120: 女 | D120: 汉族 | E120: 4145042004128 | F120: 梧州市新地镇中心校 | G120: 数学教师 | H120: 1450401008 | I120: 2 | J120: 134.5 | K120: 68.5 | L120: 85.5 | M120: 154 | N120: 75.4 | O120: =N120/2 -> 37.7 | P120: 81 | Q120: =P120/2 -> 40.5 | R120: =O120+Q120 -> 78.2 | S120: 64.77 | T120: 1
A121: 118 | B121: 陈俊名 | C121: 女 | D121: 汉族 | E121: 4145042005104 | K121: 76.5 | L121: 72 | M121: 148.5 | N121: 58 | O121: =N121/2 -> 29 | P121: 75.6 | Q121: =P121/2 -> 37.8 | R121: =O121+Q121 -> 66.8 | S121: 58.15 | T121: 6
A122: 119 | B122: 李敏琪 | C122: 女 | D122: 汉族 | E122: 4145042000611 | K122: 80.5 | L122: 64.5 | M122: 145 | N122: 71.8 | O122: =N122/2 -> 35.9 | P122: 75 | Q122: =P122/2 -> 37.5 | R122: =O122+Q122 -> 73.4 | S122: 60.87 | T122: 3
A123: 120 | B123: 郭倩怡 | C123: 女 | D123: 汉族 | E123: 4145042002207 | K123: 73 | L123: 67 | M123: 140 | N123: 76.2 | O123: =N123/2 -> 38.1 | P123: 79.2 | Q123: =P123/2 -> 39.6 | R123: =O123+Q123 -> 77.7 | S123: 62.18 | T123: 2
A124: 121 | B124: 曹清江 | C124: 男 | D124: 汉族 | E124: 4145042002424 | K124: 66.5 | L124: 69 | M124: 135.5 | N124: 73.6 | O124: =N124/2 -> 36.8 | P124: 75.8 | Q124: =P124/2 -> 37.9 | R124: =O124+Q124 -> 74.7 | S124: 59.93 | T124: 5
A125: 122 | B125: 黄彩玲 | C125: 女 | D125: 壮族 | E125: 4145042004828 | K125: 75.5 | L125: 59 | M125: 134.5 | N125: 67 | O125: =N125/2 -> 33.5 | P125: 72.4 | Q125: =P125/2 -> 36.2 | R125: =O125+Q125 -> 69.7 | S125: 57.27 | T125: 7
A126: 123 | B126: 潘静丽 | C126: 女 | D126: 汉族 | E126: 4145042001212 | K126: 66 | L126: 68.5 | M126: 134.5 | N126: 72 | O126: =N126/2 -> 36 | P126: 79.6 | Q126: =P126/2 -> 39.8 | R126: =O126+Q126 -> 75.8 | S126: 60.32 | T126: 4
A127: 124 | B127: 郭晓婷 | C127: 女 | D127: 汉族 | E127: 4245040400511 | F127: 梧州市龙圩实验中学 | G127: 政治（思想品德）教师 | H127: 1450401009 | I127: 3 | J127: 162.5 | K127: 88 | L127: 92.5 | M127: 180.5 | N127: 75.4 | O127: =N127/2 -> 37.7 | P127: 77.2 | Q127: =P127/2 -> 38.6 | R127: =O127+Q127 -> 76.3 | S127: 68.23 | T127: 5
A128: 125 | B128: 廖锦燕 | C128: 女 | D128: 汉族 | E128: 4245040400608 | K128: 86.5 | L128: 93.5 | M128: 180 | N128: 79.4 | O128: =N128/2 -> 39.7 | P128: 80.6 | Q128: =P128/2 -> 40.3 | R128: =O128+Q128 -> 80 | S128: 70.00 | T128: 1
A129: 126 | B129: 徐蜜婍 | C129: 女 | D129: 汉族 | E129: 4245040400403 | K129: 94 | L129: 84 | M129: 178 | N129: 73.2 | O129: =N129/2 -> 36.6 | P129: 81.6 | Q129: =P129/2 -> 40.8 | R129: =O129+Q129 -> 77.4 | S129: 68.37 | T129: 4
A130: 127 | B130: 谢雨杏 | C130: 女 | D130: 汉族 | E130: 4245040401619 | K130: 83 | L130: 88 | M130: 171 | N130: 76.8 | O130: =N130/2 -> 38.4 | P130: 83.2 | Q130: =P130/2 -> 41.6 | R130: =O130+Q130 -> 80 | S130: 68.50 | T130: 3
A131: 128 | B131: 禤敏梅 | C131: 女 | D131: 汉族 | E131: 4245040401127 | K131: 94.5 | L131: 76.5 | M131: 171 | N131: 83.2 | O131: =N131/2 -> 41.6 | P131: 81.6 | Q131: =P131/2 -> 40.8 | R131: =O131+Q131 -> 82.4 | S131: 69.70 | T131: 2
A132: 129 | B132: 潘震 | C132: 男 | D132: 汉族 | E132: 4245040403910 | K132: 91 | L132: 78 | M132: 169 | N132: 69.8 | O132: =N132/2 -> 34.9 | P132: 82.2 | Q132: =P132/2 -> 41.1 | R132: =O132+Q132 -> 76 | S132: 66.17 | T132: 8
A133: 130 | B133: 潘秋妙 | C133: 女 | D133: 汉族 | E133: 4245040401328 | K133: 105.5 | L133: 60.5 | M133: 166 | N133: 83.4 | O133: =N133/2 -> 41.7 | P133: 78.2 | Q133: =P133/2 -> 39.1 | R133: =O133+Q133 -> 80.8 | S133: 68.07 | T133: 6
A134: 131 | B134: 岑思 | C134: 女 | D134: 汉族 | E134: 4245040401007 | K134: 88.5 | L134: 74 | M134: 162.5 | N134: 0 | O134: =N134/2 -> 0 | P134: 0 | Q134: =P134/2 -> 0 | R134: =O134+Q134 -> 0 | S134: 27.08 | T134: 9
A135: 132 | B135: 陶丽萍 | C135: 女 | D135: 汉族 | E135: 4245040402013 | K135: 90.5 | L135: 72 | M135: 162.5 | N135: 74.4 | O135: =N135/2 -> 37.2 | P135: 83 | Q135: =P135/2 -> 41.5 | R135: =O135+Q135 -> 78.7 | S135: 66.43 | T135: 7
A136: 133 | B136: 邓诗钟 | C136: 男 | D136: 汉族 | E136: 4245040402230 | F136: 梧州市龙圩实验中学 | G136: 语文教师 | H136: 1450401010 | I136: 6 | J136: 165 | K136: 78 | L136: 106 | M136: 184 | N136: 0 | O136: =N136/2 -> 0 | P136: 0 | Q136: =P136/2 -> 0 | R136: =O136+Q136 -> 0 | S136: 30.67 | T136: 17
A137: 134 | B137: 黄丽嘉 | C137: 女 | D137: 汉族 | E137: 4245040402725 | K137: 100.5 | L137: 81 | M137: 181.5 | N137: 67.4 | O137: =N137/2 -> 33.7 | P137: 72.8 | Q137: =P137/2 -> 36.4 | R137: =O137+Q137 -> 70.1 | S137: 65.30 | T137: 13
A138: 135 | B138: 黄焱 | C138: 女 | D138: 汉族 | E138: 4245040401302 | K138: 80.5 | L138: 98 | M138: 178.5 | N138: 80.2 | O138: =N138/2 -> 40.1 | P138: 84.4 | Q138: =P138/2 -> 42.2 | R138: =O138+Q138 -> 82.3 | S138: 70.90 | T138: 1
A139: 136 | B139: 龙秋宇 | C139: 女 | D139: 汉族 | E139: 4245040403127 | K139: 74.5 | L139: 100.5 | M139: 175 | N139: 70.4 | O139: =N139/2 -> 35.2 | P139: 72.8 | Q139: =P139/2 -> 36.4 | R139: =O139+Q139 -> 71.6 | S139: 64.97 | T139: 14
A140: 137 | B140: 汪习培 | C140: 女 | D140: 壮族 | E140: 4245040403630 | K140: 96 | L140: 78.5 | M140: 174.5 | N140: 77.2 | O140: =N140/2 -> 38.6 | P140: 73.8 | Q140: =P140/2 -> 36.9 | R140: =O140+Q140 -> 75.5 | S140: 66.83 | T140: 9
A141: 138 | B141: 陈栩坚 | C141: 女 | D141: 汉族 | E141: 4245040401321 | K141: 98.5 | L141: 75.5 | M141: 174 | N141: 83 | O141: =N141/2 -> 41.5 | P141: 81 | Q141: =P141/2 -> 40.5 | R141: =O141+Q141 -> 82 | S141: 70.00 | T141: 2
A142: 139 | B142: 莫东桦 | C142: 女 | D142: 汉族 | E142: 4245040401016 | K142: 82.5 | L142: 91.5 | M142: 174 | N142: 80.2 | O142: =N142/2 -> 40.1 | P142: 82.4 | Q142: =P142/2 -> 41.2 | R142: =O142+Q142 -> 81.3 | S142: 69.65 | T142: 3
A143: 140 | B143: 曾银河 | C143: 女 | D143: 汉族 | E143: 4245040401927 | K143: 86.5 | L143: 86 | M143: 172.5 | N143: 76.6 | O143: =N143/2 -> 38.3 | P143: 79.6 | Q143: =P143/2 -> 39.8 | R143: =O143+Q143 -> 78.1 | S143: 67.80 | T143: 7
A144: 141 | B144: 陈美欣 | C144: 女 | D144: 汉族 | E144: 4245040400505 | K144: 87 | L144: 85 | M144: 172 | N144: 71 | O144: =N144/2 -> 35.5 | P144: 82.8 | Q144: =P144/2 -> 41.4 | R144: =O144+Q144 -> 76.9 | S144: 67.12 | T144: 8
A145: 142 | B145: 莫斯嫚 | C145: 女 | D145: 瑶族 | E145: 4245040400415 | K145: 100 | L145: 71.5 | M145: 171.5 | N145: 83.2 | O145: =N145/2 -> 41.6 | P145: 79 | Q145: =P145/2 -> 39.5 | R145: =O145+Q145 -> 81.1 | S145: 69.13 | T145: 5
A146: 143 | B146: 覃祈颖 | C146: 男 | D146: 汉族 | E146: 4245040400427 | K146: 93 | L146: 76 | M146: 169 | N146: 75 | O146: =N146/2 -> 37.5 | P146: 74.4 | Q146: =P146/2 -> 37.2 | R146: =O146+Q146 -> 74.7 | S146: 65.52 | T146: 12
A147: 144 | B147: 严林英 | C147: 女 | D147: 汉族 | E147: 4245040401512 | K147: 90 | L147: 79 | M147: 169 | N147: 0 | O147: =N147/2 -> 0 | P147: 0 | Q147: =P147/2 -> 0 | R147: =O147+Q147 -> 0 | S147: 28.17 | T147: 18
A148: 145 | B148: 徐俊杰 | C148: 男 | D148: 汉族 | E148: 4245040402310 | K148: 93 | L148: 74.5 | M148: 167.5 | N148: 84 | O148: =N148/2 -> 42 | P148: 81.2 | Q148: =P148/2 -> 40.6 | R148: =O148+Q148 -> 82.6 | S148: 69.22 | T148: 4
A149: 146 | B149: 莫倩妮 | C149: 女 | D149: 汉族 | E149: 4245040401218 | K149: 80 | L149: 87 | M149: 167 | N149: 72.6 | O149: =N149/2 -> 36.3 | P149: 74.6 | Q149: =P149/2 -> 37.3 | R149: =O149+Q149 -> 73.6 | S149: 64.63 | T149: 15
A150: 147 | B150: 易远飞 | C150: 男 | D150: 汉族 | E150: 4245040403018 | K150: 89.5 | L150: 77 | M150: 166.5 | N150: 74 | O150: =N150/2 -> 37 | P150: 78.6 | Q150: =P150/2 -> 39.3 | R150: =O150+Q150 -> 76.3 | S150: 65.90 | T150: 11
A151: 148 | B151: 梁炳柳 | C151: 女 | D151: 汉族 | E151: 4245040403115 | K151: 90.5 | L151: 75.5 | M151: 166 | N151: 73.4 | O151: =N151/2 -> 36.7 | P151: 74.6 | Q151: =P151/2 -> 37.3 | R151: =O151+Q151 -> 74 | S151: 64.67 | T151: 16
A152: 149 | B152: 黄金玉 | C152: 女 | D152: 汉族 | E152: 4245040402225 | K152: 78.5 | L152: 86.5 | M152: 165 | N152: 84.2 | O152: =N152/2 -> 42.1 | P152: 77.4 | Q152: =P152/2 -> 38.7 | R152: =O152+Q152 -> 80.8 | S152: 67.90 | T152: 6
A153: 150 | B153: 倪杨燕 | C153: 女 | D153: 汉族 | E153: 4245040402201 | K153: 76 | L153: 89 | M153: 165 | N153: 77.4 | O153: =N153/2 -> 38.7 | P153: 79.6 | Q153: =P153/2 -> 39.8 | R153: =O153+Q153 -> 78.5 | S153: 66.75 | T153: 10
A154: 151 | B154: 朱燕玲 | C154: 女 | D154: 汉族 | E154: 4245040403120 | K154: 76 | L154: 89 | M154: 165 | N154: 70.8 | O154: =N154/2 -> 35.4 | P154: 79.8 | Q154: =P154/2 -> 39.9 | R154: =O154+Q154 -> 75.3 | S154: 65.15 | T154: 13
A155: 152 | B155: 陈炜飞 | C155: 女 | D155: 汉族 | E155: 4245040401310 | F155: 梧州市龙圩实验中学 | G155: 数学教师 | H155: 1450401011 | I155: 7 | J155: 129.5 | K155: 85 | L155: 88.5 | M155: 173.5 | N155: 87.4 | O155: =N155/2 -> 43.7 | P155: 79 | Q155: =P155/2 -> 39.5 | R155: =O155+Q155 -> 83.2 | S155: 70.52 | T155: 1
A156: 153 | B156: 覃文焯 | C156: 男 | D156: 汉族 | E156: 4245040400117 | K156: 88.5 | L156: 79.5 | M156: 168 | N156: 86.8 | O156: =N156/2 -> 43.4 | P156: 82.2 | Q156: =P156/2 -> 41.1 | R156: =O156+Q156 -> 84.5 | S156: 70.25 | T156: 2
A157: 154 | B157: 农海萍 | C157: 女 | D157: 汉族 | E157: 4245040403118 | K157: 89 | L157: 77.5 | M157: 166.5 | N157: 80.4 | O157: =N157/2 -> 40.2 | P157: 78.2 | Q157: =P157/2 -> 39.1 | R157: =O157+Q157 -> 79.3 | S157: 67.40 | T157: 3
A158: 155 | B158: 杨雯霞 | C158: 女 | D158: 汉族 | E158: 4245040401730 | K158: 90.5 | L158: 71 | M158: 161.5 | N158: 70.8 | O158: =N158/2 -> 35.4 | P158: 75.4 | Q158: =P158/2 -> 37.7 | R158: =O158+Q158 -> 73.1 | S158: 63.47 | T158: 8
A159: 156 | B159: 严泽铭 | C159: 男 | D159: 汉族 | E159: 4245040400924 | K159: 85 | L159: 75.5 | M159: 160.5 | N159: 73.8 | O159: =N159/2 -> 36.9 | P159: 74.2 | Q159: =P159/2 -> 37.1 | R159: =O159+Q159 -> 74 | S159: 63.75 | T159: 6
A160: 157 | B160: 聂华燕 | C160: 女 | D160: 汉族 | E160: 4245040401612 | K160: 82.5 | L160: 77 | M160: 159.5 | N160: 73.2 | O160: =N160/2 -> 36.6 | P160: 73.4 | Q160: =P160/2 -> 36.7 | R160: =O160+Q160 -> 73.3 | S160: 63.23 | T160: 10
A161: 158 | B161: 黎玉兰 | C161: 女 | D161: 汉族 | E161: 4245040403211 | K161: 90 | L161: 69 | M161: 159 | N161: 75.2 | O161: =N161/2 -> 37.6 | P161: 77.6 | Q161: =P161/2 -> 38.8 | R161: =O161+Q161 -> 76.4 | S161: 64.70 | T161: 5
A162: 159 | B162: 王燕玲 | C162: 女 | D162: 汉族 | E162: 4245040402110 | K162: 74.5 | L162: 79 | M162: 153.5 | N162: 69.8 | O162: =N162/2 -> 34.9 | P162: 73 | Q162: =P162/2 -> 36.5 | R162: =O162+Q162 -> 71.4 | S162: 61.28 | T162: 17
A163: 160 | B163: 郭宇辰 | C163: 男 | D163: 汉族 | E163: 4245040400118 | K163: 92.5 | L163: 58 | M163: 150.5 | N163: 79.2 | O163: =N163/2 -> 39.6 | P163: 73.2 | Q163: =P163/2 -> 36.6 | R163: =O163+Q163 -> 76.2 | S163: 63.18 | T163: 11
A164: 161 | B164: 陀水金 | C164: 女 | D164: 汉族 | E164: 4245040400903 | K164: 64.5 | L164: 86 | M164: 150.5 | N164: 74.4 | O164: =N164/2 -> 37.2 | P164: 74 | Q164: =P164/2 -> 37 | R164: =O164+Q164 -> 74.2 | S164: 62.18 | T164: 14
A165: 162 | B165: 李金霞 | C165: 女 | D165: 汉族 | E165: 4245040403829 | K165: 85 | L165: 63 | M165: 148 | N165: 76.6 | O165: =N165/2 -> 38.3 | P165: 78.4 | Q165: =P165/2 -> 39.2 | R165: =O165+Q165 -> 77.5 | S165: 63.42 | T165: 9
A166: 163 | B166: 莫金花 | C166: 女 | D166: 汉族 | E166: 4245040401814 | K166: 72.5 | L166: 73.5 | M166: 146 | N166: 76.4 | O166: =N166/2 -> 38.2 | P166: 75.4 | Q166: =P166/2 -> 37.7 | R166: =O166+Q166 -> 75.9 | S166: 62.28 | T166: 13
A167: 164 | B167: 何燕容 | C167: 女 | D167: 汉族 | E167: 4245040401430 | K167: 73.5 | L167: 71.5 | M167: 145 | N167: 81.2 | O167: =N167/2 -> 40.6 | P167: 81 | Q167: =P167/2 -> 40.5 | R167: =O167+Q167 -> 81.1 | S167: 64.72 | T167: 4
A168: 165 | B168: 蒋汉锦 | C168: 男 | D168: 汉族 | E168: 4245040401605 | K168: 81 | L168: 62 | M168: 143 | N168: 79.2 | O168: =N168/2 -> 39.6 | P168: 80 | Q168: =P168/2 -> 40 | R168: =O168+Q168 -> 79.6 | S168: 63.63 | T168: 7
A169: 166 | B169: 禤灿月 | C169: 女 | D169: 汉族 | E169: 4245040402326 | K169: 76 | L169: 66.5 | M169: 142.5 | N169: 74.8 | O169: =N169/2 -> 37.4 | P169: 76.6 | Q169: =P169/2 -> 38.3 | R169: =O169+Q169 -> 75.7 | S169: 61.60 | T169: 15
A170: 167 | B170: 霍洁兰 | C170: 女 | D170: 汉族 | E170: 4245040400712 | K170: 68 | L170: 68.5 | M170: 136.5 | N170: 79.6 | O170: =N170/2 -> 39.8 | P170: 78.6 | Q170: =P170/2 -> 39.3 | R170: =O170+Q170 -> 79.1 | S170: 62.30 | T170: 12
A171: 168 | B171: 蒋伟莹 | C171: 女 | D171: 汉族 | E171: 4245040401805 | K171: 69.5 | L171: 66 | M171: 135.5 | N171: 80.2 | O171: =N171/2 -> 40.1 | P171: 75.6 | Q171: =P171/2 -> 37.8 | R171: =O171+Q171 -> 77.9 | S171: 61.53 | T171: 16
A172: 169 | B172: 莫金潮 | C172: 男 | D172: 汉族 | E172: 4245040401401 | K172: 79 | L172: 56 | M172: 135 | N172: 69.4 | O172: =N172/2 -> 34.7 | P172: 81 | Q172: =P172/2 -> 40.5 | R172: =O172+Q172 -> 75.2 | S172: 60.10 | T172: 18
A173: 170 | B173: 朱木英 | C173: 女 | D173: 汉族 | E173: 4245040400213 | K173: 61 | L173: 73.5 | M173: 134.5 | N173: 0 | O173: =N173/2 -> 0 | P173: 0 | Q173: =P173/2 -> 0 | R173: =O173+Q173 -> 0 | S173: 22.42 | T173: 21
A174: 171 | B174: 张誉锴 | C174: 男 | D174: 汉族 | E174: 4245040401611 | K174: 67.5 | L174: 62.5 | M174: 130 | N174: 70 | O174: =N174/2 -> 35 | P174: 82.6 | Q174: =P174/2 -> 41.3 | R174: =O174+Q174 -> 76.3 | S174: 59.82 | T174: 19
A175: 172 | B175: 叶美志 | C175: 女 | D175: 汉族 | E175: 4245040403007 | K175: 70.5 | L175: 59 | M175: 129.5 | N175: 63.2 | O175: =N175/2 -> 31.6 | P175: 70.8 | Q175: =P175/2 -> 35.4 | R175: =O175+Q175 -> 67 | S175: 55.08 | T175: 20
A176: 173 | B176: 李冬霞 | C176: 女 | D176: 汉族 | E176: 4245040400412 | F176: 梧州市龙圩实验中学 | G176: 物理教师 | H176: 1450401012 | I176: 5 | J176: 126 | K176: 85.5 | L176: 85 | M176: 170.5 | N176: 82.4 | O176: =N176/2 -> 41.2 | P176: 85.2 | Q176: =P176/2 -> 42.6 | R176: =O176+Q176 -> 83.8 | S176: 70.32 | T176: 1
A177: 174 | B177: 庞爱萍 | C177: 女 | D177: 汉族 | E177: 4245040400904 | K177: 77 | L177: 89.5 | M177: 166.5 | N177: 80.6 | O177: =N177/2 -> 40.3 | P177: 82.2 | Q177: =P177/2 -> 41.1 | R177: =O177+Q177 -> 81.4 | S177: 68.45 | T177: 2
A178: 175 | B178: 庾晴 | C178: 女 | D178: 汉族 | E178: 4245040402216 | K178: 87 | L178: 73.5 | M178: 160.5 | N178: 65.4 | O178: =N178/2 -> 32.7 | P178: 74.8 | Q178: =P178/2 -> 37.4 | R178: =O178+Q178 -> 70.1 | S178: 61.80 | T178: 6
A179: 176 | B179: 刘梓坤 | C179: 男 | D179: 汉族 | E179: 4245040400603 | K179: 89 | L179: 61 | M179: 150 | N179: 85.6 | O179: =N179/2 -> 42.8 | P179: 86 | Q179: =P179/2 -> 43 | R179: =O179+Q179 -> 85.8 | S179: 67.90 | T179: 3
A180: 177 | B180: 吴月清 | C180: 女 | D180: 汉族 | E180: 4245040403410 | K180: 72.5 | L180: 76.5 | M180: 149 | N180: 0 | O180: =N180/2 -> 0 | P180: 0 | Q180: =P180/2 -> 0 | R180: =O180+Q180 -> 0 | S180: 24.83 | T180: 14
A181: 178 | B181: 唐海胜 | C181: 男 | D181: 汉族 | E181: 4245040401205 | K181: 83 | L181: 65 | M181: 148 | N181: 0 | O181: =N181/2 -> 0 | P181: 0 | Q181: =P181/2 -> 0 | R181: =O181+Q181 -> 0 | S181: 24.67 | T181: 15
A182: 179 | B182: 钟紫霞 | C182: 女 | D182: 汉族 | E182: 4245040401411 | K182: 82 | L182: 64 | M182: 146 | N182: 72.6 | O182: =N182/2 -> 36.3 | P182: 75 | Q182: =P182/2 -> 37.5 | R182: =O182+Q182 -> 73.8 | S182: 61.23 | T182: 7
A183: 180 | B183: 周丽云 | C183: 女 | D183: 汉族 | E183: 4245040402004 | K183: 78.5 | L183: 64 | M183: 142.5 | N183: 84 | O183: =N183/2 -> 42 | P183: 80.8 | Q183: =P183/2 -> 40.4 | R183: =O183+Q183 -> 82.4 | S183: 64.95 | T183: 5
A184: 181 | B184: 李矿 | C184: 男 | D184: 汉族 | E184: 4245040401102 | K184: 79 | L184: 62.5 | M184: 141.5 | N184: 83.2 | O184: =N184/2 -> 41.6 | P184: 83.4 | Q184: =P184/2 -> 41.7 | R184: =O184+Q184 -> 83.3 | S184: 65.23 | T184: 4
A185: 182 | B185: 宋祥建 | C185: 男 | D185: 汉族 | E185: 4245040403913 | K185: 69.5 | L185: 68 | M185: 137.5 | N185: 69.8 | O185: =N185/2 -> 34.9 | P185: 75.4 | Q185: =P185/2 -> 37.7 | R185: =O185+Q185 -> 72.6 | S185: 59.22 | T185: 10
A186: 183 | B186: 甘火月 | C186: 女 | D186: 汉族 | E186: 4245040403603 | K186: 80 | L186: 57 | M186: 137 | N186: 67.8 | O186: =N186/2 -> 33.9 | P186: 73.2 | Q186: =P186/2 -> 36.6 | R186: =O186+Q186 -> 70.5 | S186: 58.08 | T186: 12
A187: 184 | B187: 黎洪莹 | C187: 女 | D187: 黎族 | E187: 4245040400908 | K187: 77.5 | L187: 58.5 | M187: 136 | N187: 72 | O187: =N187/2 -> 36 | P187: 79.2 | Q187: =P187/2 -> 39.6 | R187: =O187+Q187 -> 75.6 | S187: 60.47 | T187: 8
A188: 185 | B188: 廖国任 | C188: 男 | D188: 汉族 | E188: 4245040402712 | K188: 70 | L188: 63.5 | M188: 133.5 | N188: 74.6 | O188: =N188/2 -> 37.3 | P188: 74.6 | Q188: =P188/2 -> 37.3 | R188: =O188+Q188 -> 74.6 | S188: 59.55 | T188: 9
A189: 186 | B189: 莫大业 | C189: 男 | D189: 汉族 | E189: 4245040401508 | K189: 74.5 | L189: 57.5 | M189: 132 | N189: 67.6 | O189: =N189/2 -> 33.8 | P189: 75.2 | Q189: =P189/2 -> 37.6 | R189: =O189+Q189 -> 71.4 | S189: 57.70 | T189: 13
A190: 187 | B190: 李林 | C190: 男 | D190: 汉族 | E190: 4245040400925 | K190: 69 | L190: 57 | M190: 126 | N190: 71.6 | O190: =N190/2 -> 35.8 | P190: 77.8 | Q190: =P190/2 -> 38.9 | R190: =O190+Q190 -> 74.7 | S190: 58.35 | T190: 11
A191: 188 | B191: 陈研君 | C191: 女 | D191: 汉族 | E191: 4245040403405 | F191: 梧州市龙圩实验中学 | G191: 化学教师 | H191: 1450401013 | I191: 2 | J191: 171.5 | K191: 100 | L191: 87.5 | M191: 187.5 | N191: 75.6 | O191: =N191/2 -> 37.8 | P191: 82 | Q191: =P191/2 -> 41 | R191: =O191+Q191 -> 78.8 | S191: 70.65 | T191: 3
A192: 189 | B192: 黎芳华 | C192: 女 | D192: 汉族 | E192: 4245040403023 | K192: 104 | L192: 82 | M192: 186 | N192: 73.6 | O192: =N192/2 -> 36.8 | P192: 80.8 | Q192: =P192/2 -> 40.4 | R192: =O192+Q192 -> 77.2 | S192: 69.60 | T192: 4
A193: 190 | B193: 黎燕丽 | C193: 女 | D193: 汉族 | E193: 4245040403523 | K193: 97.5 | L193: 85.5 | M193: 183 | N193: 82 | O193: =N193/2 -> 41 | P193: 80.2 | Q193: =P193/2 -> 40.1 | R193: =O193+Q193 -> 81.1 | S193: 71.05 | T193: 2
A194: 191 | B194: 陈秋娟 | C194: 女 | D194: 汉族 | E194: 4245040400123 | K194: 102.5 | L194: 80 | M194: 182.5 | N194: 83.6 | O194: =N194/2 -> 41.8 | P194: 85.4 | Q194: =P194/2 -> 42.7 | R194: =O194+Q194 -> 84.5 | S194: 72.67 | T194: 1
A195: 192 | B195: 周敏妮 | C195: 女 | D195: 汉族 | E195: 4245040400809 | K195: 93.5 | L195: 80 | M195: 173.5 | N195: 74.8 | O195: =N195/2 -> 37.4 | P195: 79.8 | Q195: =P195/2 -> 39.9 | R195: =O195+Q195 -> 77.3 | S195: 67.57 | T195: 5
A196: 193 | B196: 梁钰婷 | C196: 女 | D196: 汉族 | E196: 4245040403719 | K196: 92.5 | L196: 79 | M196: 171.5 | N196: 77 | O196: =N196/2 -> 38.5 | P196: 76.6 | Q196: =P196/2 -> 38.3 | R196: =O196+Q196 -> 76.8 | S196: 66.98 | T196: 7
A197: 194 | B197: 廖前泉 | C197: 男 | D197: 汉族 | E197: 4245040402522 | K197: 97 | L197: 74.5 | M197: 171.5 | N197: 71.4 | O197: =N197/2 -> 35.7 | P197: 83.6 | Q197: =P197/2 -> 41.8 | R197: =O197+Q197 -> 77.5 | S197: 67.33 | T197: 6
A198: 195 | B198: 李霜钰 | C198: 女 | D198: 汉族 | E198: 4245040403704 | F198: 梧州市龙圩实验中学 | G198: 生物教师 | H198: 1450401014 | I198: 3 | J198: 158 | K198: 112 | L198: 84.5 | M198: 196.5 | N198: 75.8 | O198: =N198/2 -> 37.9 | P198: 79.8 | Q198: =P198/2 -> 39.9 | R198: =O198+Q198 -> 77.8 | S198: 71.65 | T198: 1
A199: 196 | B199: 车安琪 | C199: 女 | D199: 汉族 | E199: 4245040403401 | K199: 95.5 | L199: 81.5 | M199: 177 | N199: 81.6 | O199: =N199/2 -> 40.8 | P199: 78.2 | Q199: =P199/2 -> 39.1 | R199: =O199+Q199 -> 79.9 | S199: 69.45 | T199: 3
A200: 197 | B200: 吴林萍 | C200: 女 | D200: 汉族 | E200: 4245040400510 | K200: 92.5 | L200: 84 | M200: 176.5 | N200: 79 | O200: =N200/2 -> 39.5 | P200: 82.2 | Q200: =P200/2 -> 41.1 | R200: =O200+Q200 -> 80.6 | S200: 69.72 | T200: 2
... 113 more rows
